bitfinex-derivatives/quotes_SOLF0:USTF0_20251119
["timestamp","ask_amount","ask_price","bid_price","bid_amount"]
[1763585054952,0.05795654,132.19,132.17,3.11012597]
[1763585055750,0.05795654,132.19,132.18,3.06]
[1763585057156,32.77938972,132.23,132.19,3.06]
[1763585057955,0.05047413,132.22,132.2,0.05285668]
[1763585058152,0.05047413,132.22,132.2,3.11285668]
[1763585058963,13.88869741,132.25,132.22,3.06]
[1763585059155,7.07529741,132.28,132.22,3.06]
[1763585059455,2.89009231,132.29,132.23,3.06]
[1763585059643,7.07529741,132.3,132.25,3.06]
[1763585059848,0.05078869,132.29,132.27,3.06]
[1763585060558,7.07529741,132.34,132.27,3.06]
[1763585060746,9.96538972,132.34,132.27,3.06]
[1763585061147,16.77408972,132.34,132.28,3.06]
[1763585061349,9.69879231,132.34,132.28,3.06]
[1763585061547,2.94226059,132.32,132.3,3.10899942]
[1763585061756,2.94226059,132.32,132.3,0.04899942]
[1763585062352,9.75176059,132.32,132.3,0.04899942]
[1763585062853,6.86166828,132.32,132.3,0.04899942]
[1763585063562,0.05216828,132.32,132.3,0.04899942]
[1763585063753,0.05216828,132.32,132.3,3.10899942]
[1763585071770,0.05216828,132.32,132.31,3.27]
[1763585073366,0.05216828,132.32,132.3,3.31899942]
[1763585077068,0.05216828,132.32,132.31,3.27]
[1763585077765,16.0,132.37,132.32,3.2]
[1763585078159,22.8068,132.37,132.32,3.2]
[1763585078764,0.05066568,132.36,132.34,3.2]
[1763585080972,15.98,132.41,132.35,3.2]
[1763585081671,6.8058,132.39,132.35,3.2]
[1763585081868,0.05747128,132.38,132.36,0.0481239]
[1763585082076,0.05747128,132.38,132.36,3.2481239]
[1763585084271,6.86377128,132.38,132.36,0.0481239]
[1763585084466,0.05747128,132.38,132.36,3.2481239]
[1763585084774,0.05747128,132.38,132.37,3.2]
[1763585086475,15.98,132.41,132.38,3.2]
[1763585086665,4.50588554,132.43,132.38,3.2]
[1763585087571,0.05045216,132.42,132.4,3.2]
[1763585089273,0.05045216,132.42,132.41,3.2]
[1763585090168,6.8027,132.45,132.42,3.2]
[1763585090674,4.50588554,132.46,132.42,3.2]
[1763585091077,4.50588554,132.46,132.43,3.2]
[1763585091272,0.05160595,132.46,132.43,3.2521743]
[1763585091972,0.05160595,132.46,132.45,3.2]
[1763585092182,4.50588554,132.5,132.45,3.2]
[1763585092376,4.50588554,132.5,132.46,3.2]
[1763585092585,6.8023,132.46,132.43,3.2]
[1763585093275,0.05270261,132.46,132.43,3.24907531]
[1763585094772,6.85490261,132.46,132.43,3.24907531]
[1763585095580,11.30868554,132.45,132.43,0.04907531]
[1763585095884,4.50588554,132.45,132.4,3.2]
[1763585096181,4.50588554,132.43,132.4,3.2]
[1763585096880,4.55348251,132.43,132.4,3.24877969]
[1763585097476,11.35728251,132.43,132.4,3.24877969]
[1763585100173,6.8042,132.42,132.4,3.24877969]
[1763585100377,0.04759697,132.43,132.4,3.24877969]
[1763585101771,6.85139697,132.43,132.4,3.24877969]
[1763585102985,6.8043,132.42,132.4,3.24877969]
[1763585103168,11.31018554,132.42,132.4,0.04877969]
[1763585103374,18.38548295,132.42,132.4,0.04877969]
[1763585103685,11.31018554,132.42,132.4,0.04877969]
[1763585103985,18.38548295,132.42,132.4,0.04877969]
[1763585104280,18.38548295,132.42,132.31,15.96]
[1763585104281,7.07529741,132.41,132.31,15.96]
[1763585104468,4.50588554,132.4,132.34,6.8083]
[1763585104669,4.50588554,132.4,132.35,3.2]
[1763585105180,4.50588554,132.4,132.36,0.04794809]
[1763585105373,0.05702745,132.39,132.36,0.04794809]
[1763585105574,4.50588554,132.38,132.36,0.04794809]
[1763585105974,11.58118295,132.38,132.31,3.2]
[1763585106173,4.50588554,132.34,132.31,3.2]
[1763585106380,112.95989741,132.37,132.31,3.2]
[1763585106381,20.46588554,132.36,132.31,3.2]
[1763585106989,0.05475031,132.35,132.32,3.25435927]
[1763585107181,0.0519046,132.35,132.32,3.25435927]
[1763585107484,4.55779014,132.35,132.32,0.05435927]
[1763585107780,6.8085,132.34,132.32,0.05435927]
[1763585108177,4.50588554,132.33,132.32,0.05435927]
[1763585110283,15.96,132.34,132.32,3.36435927]
[1763585110581,0.0519046,132.35,132.32,3.36435927]
[1763585110784,4.50588554,132.39,132.34,3.31]
[1763585111277,15.96,132.4,132.36,3.31]
[1763585111482,22.7653,132.4,132.36,3.31]
[1763585111780,4.50588554,132.39,132.36,3.31]
[1763585112087,4.56130765,132.39,132.37,0.05514468]
[1763585112777,6.86132211,132.39,132.37,0.05514468]
[1763585114491,0.05542211,132.39,132.37,0.05514468]
[1763585116191,6.86132211,132.39,132.37,0.05514468]
[1763585116577,105.8929,132.36,132.28,6.8113]
[1763585116882,15.96,132.36,132.29,3.31]
[1763585117288,6.8084,132.34,132.3,3.31]
[1763585117680,0.05227831,132.33,132.31,3.36637331]
[1763585119290,23.03529741,132.39,132.32,3.31]
[1763585119692,6.8068,132.37,132.33,3.31]
[1763585120091,6.85896853,132.36,132.34,0.05610697]
[1763585121195,15.96,132.35,132.34,0.05610697]
[1763585121890,15.96,132.35,132.29,3.31]
[1763585122594,22.7683,132.35,132.29,3.31]
[1763585122890,0.05051781,132.33,132.31,0.05368027]
[1763585123095,0.05051781,132.33,132.32,3.31]
[1763585123885,0.05051781,132.33,132.31,0.05368027]
[1763585124793,0.05051781,132.33,132.31,3.36368027]
[1763585126793,0.00051781,132.33,132.31,3.36368027]
[1763585127296,0.00051781,132.33,132.31,10.17348027]
[1763585127499,0.00051781,132.33,132.31,3.36368027]
[1763585131199,0.00051781,132.33,132.31,10.17348027]
[1763585131402,0.00051781,132.33,132.32,3.23]
[1763585132204,0.00051781,132.33,132.32,4.75]
[1763585132593,0.00051781,132.33,132.32,11.61411053]
[1763585132800,105.8282,132.44,132.36,3.23]
[1763585133193,112.69231053,132.44,132.36,3.23]
[1763585133407,23.03529741,132.43,132.33,3.23]
[1763585133611,15.96,132.43,132.33,3.23]
[1763585133813,0.05441457,132.39,132.37,3.27874359]
[1763585134608,0.05441457,132.39,132.37,0.04874359]
[1763585134800,0.05441457,132.39,132.37,3.27874359]
[1763585137510,0.05441457,132.39,132.37,0.04874359]
[1763585138105,6.86031457,132.39,132.37,0.04874359]
[1763585138615,0.05441457,132.39,132.37,3.39874359]
[1763585138811,0.05441457,132.39,132.37,0.04874359]
[1763585139006,2.88044172,132.38,132.37,0.04874359]
[1763585139610,9.95573913,132.38,132.33,3.35]
[1763585139810,2.88044172,132.36,132.33,3.35]
[1763585140710,2.93492965,132.36,132.33,3.40469109]
[1763585141016,0.05448793,132.36,132.33,3.40469109]
[1763585142303,6.86178793,132.36,132.33,0.05469109]
[1763585142502,6.86178793,132.36,132.33,3.40469109]
[1763585144114,0.05448793,132.36,132.33,3.40469109]
[1763585145007,6.86178793,132.36,132.33,3.40469109]
[1763585146114,6.8078,132.35,132.33,0.05469109]
[1763585146510,7.07529741,132.35,132.33,0.05469109]
[1763585147810,6.8083,132.34,132.33,0.05469109]
[1763585148720,7.07529741,132.35,132.33,0.05469109]
[1763585149723,6.8083,132.34,132.33,0.05469109]
[1763585150320,13.88359741,132.34,132.33,0.05469109]
[1763585150623,6.8083,132.34,132.33,0.05469109]
[1763585150828,13.88359741,132.34,132.33,0.05469109]
[1763585151222,6.8083,132.34,132.33,0.05469109]
[1763585151523,105.9321,132.31,132.21,3.35]
[1763585151717,7.06220068,132.29,132.21,10.165]
[1763585151908,6.812,132.27,132.22,3.35]
[1763585152114,7.06220068,132.29,132.22,3.35]
[1763585152115,7.06220068,132.28,132.22,3.35]
[1763585152318,7.06220068,132.27,132.22,3.35]
[1763585152515,7.06220068,132.27,132.12,210.48860714]
[1763585152516,6.8131,132.25,132.24,0.0545308]
[1763585152720,6.8131,132.25,132.19,3.35]
[1763585153120,6.86081913,132.24,132.14,3.35]
[1763585153321,7.06220068,132.23,132.14,3.35]
[1763585153529,15.96,132.22,132.14,3.35]
[1763585153822,0.05684631,132.19,132.17,3.40646332]
[1763585155520,0.05684631,132.19,132.17,0.05646332]
[1763585157326,15.96,132.18,132.11,3.35]
[1763585157917,6.8174,132.17,132.11,3.35]
[1763585158112,15.96,132.18,132.11,3.35]
[1763585158328,0.05249286,132.16,132.13,3.39961057]
[1763585159023,0.05249286,132.16,132.13,0.04961057]
[1763585159325,0.05249286,132.16,132.13,3.39961057]
[1763585161026,0.05249286,132.16,132.13,0.04961057]
[1763585161231,0.05249286,132.16,132.13,3.39961057]
[1763585161725,0.05249286,132.16,132.13,0.04961057]
[1763585162025,22.7783,132.15,132.1,3.35]
[1763585162524,29.63911913,132.15,132.1,3.35]
[1763585162826,29.63911913,132.15,132.11,0.05642054]
[1763585163226,22.82081913,132.15,132.11,0.05642054]
[1763585163817,29.63911913,132.15,132.11,0.05642054]
[1763585164214,6.8193,132.13,132.11,0.05642054]
[1763585164424,6.87580752,132.13,132.11,0.05642054]
[1763585164820,0.05650752,132.13,132.11,3.40642054]
[1763585165330,0.05650752,132.13,132.11,0.05642054]
[1763585166521,0.05650752,132.13,132.05,106.1335]
[1763585166522,6.86081913,132.12,132.05,3.35]
[1763585166721,22.82081913,132.15,132.05,3.35]
[1763585166922,22.82081913,132.15,132.09,6.821]
[1763585166923,15.96,132.15,132.09,6.821]
[1763585167122,15.96,132.15,132.1,3.35]
[1763585167526,0.05062537,132.14,132.11,3.40316343]
[1763585170525,6.86932537,132.14,132.11,3.40316343]
[1763585170819,0.05062537,132.14,132.11,3.40316343]
[1763585172936,2.9420597,132.14,132.11,3.40316343]
[1763585173432,7.06220068,132.25,132.12,3.33]
[1763585173627,23.19184382,132.27,132.14,3.33]
[1763585173832,2.89143433,132.24,132.17,3.33]
[1763585174225,2.89143433,132.22,132.18,3.33]
[1763585174534,105.9826,132.25,132.19,0.04834024]
[1763585174535,0.05176978,132.21,132.19,0.04834024]
[1763585174726,0.04814823,132.21,132.19,0.04924731]
[1763585174931,6.86334823,132.21,132.19,0.04924731]
[1763585175128,0.04814823,132.21,132.19,0.04924731]
[1763585176333,6.86334823,132.21,132.19,0.04924731]
[1763585176934,0.04814823,132.21,132.19,3.37924731]
[1763585180532,6.87764646,132.29,132.19,3.37924731]
[1763585180731,6.87764646,132.29,132.2,3.33]
[1763585181535,0.05696037,132.26,132.23,0.05084538]
[1763585182349,6.8132,132.25,132.23,0.05084538]
[1763585182540,0.05696037,132.26,132.23,3.38084538]
[1763585182746,6.8131,132.25,132.23,0.05084538]
[1763585182937,106.03136037,132.26,132.17,3.33]
[1763585183137,121.9344,132.26,132.17,3.33]
[1763585183335,6.8133,132.25,132.18,3.33]
[1763585183643,15.96,132.26,132.18,3.33]
[1763585184045,0.05791292,132.23,132.21,3.3853911]
[1763585184631,0.05791292,132.23,132.21,10.1999911]
[1763585184831,115.34296757,132.32,132.21,10.1999911]
[1763585184832,119.86654714,132.32,132.22,3.33]
[1763585185036,22.83764646,132.32,132.22,3.33]
[1763585185436,22.83764646,132.32,132.18,106.033]
[1763585185437,105.9402,132.3,132.23,3.33]
[1763585185835,6.87764646,132.26,132.25,0.0510988]
[1763585186447,6.87764646,132.26,132.19,3.23]
[1763585186747,112.85204646,132.26,132.19,3.23]
[1763585187040,6.8135,132.24,132.19,3.23]
[1763585187246,15.96,132.27,132.19,3.23]
[1763585187439,0.05667193,132.24,132.22,0.05455777]
[1763585188638,7.06220068,132.29,132.22,3.28455777]
[1763585188843,7.06220068,132.31,132.22,3.28455777]
[1763585189047,105.9325,132.31,132.22,3.23]
[1763585189243,6.8115,132.28,132.24,3.23]
[1763585189443,7.06220068,132.32,132.24,3.23]
[1763585189850,0.0500298,132.29,132.27,0.04993386]
[1763585190239,0.0500298,132.29,132.27,3.27993386]
[1763585190435,15.96,132.34,132.27,3.27993386]
[1763585190640,6.8092,132.33,132.27,3.27993386]
[1763585191039,6.8092,132.33,132.27,10.09183386]
[1763585191353,0.04852467,132.31,132.27,0.04993386]
[1763585191553,0.04852467,132.31,132.27,3.27993386]
[1763585191747,0.04852467,132.31,132.27,0.04993386]
[1763585191946,7.11072535,132.31,132.27,0.04993386]
[1763585192146,6.811,132.29,132.27,0.04993386]
[1763585192843,6.85872467,132.31,132.27,3.27993386]
[1763585193051,0.04852467,132.31,132.27,3.27993386]
[1763585194155,0.04852467,132.31,132.28,3.23]
[1763585194854,0.04852467,132.31,132.29,3.23]
[1763585195650,0.04852467,132.31,132.3,3.23]
[1763585195951,23.02220068,132.37,132.3,3.23]
[1763585196246,6.8084,132.34,132.3,3.23]
[1763585196846,0.05181008,132.33,132.31,0.0476252]
[1763585197048,6.86071008,132.33,132.31,0.0476252]
[1763585198255,0.05181008,132.33,132.31,0.0476252]
[1763585198447,0.05181008,132.33,132.31,3.3576252]
[1763585200359,0.05181008,132.33,132.31,0.0476252]
[1763585200853,6.86071008,132.33,132.31,0.0476252]
[1763585201055,0.05181008,132.33,132.22,125.2709]
[1763585201250,15.96,132.33,132.23,3.31]
[1763585201446,6.8099,132.31,132.26,3.31]
[1763585202054,0.05313114,132.3,132.28,3.31]
[1763585206964,0.05313114,132.3,132.27,3.36566964]
[1763585207467,6.811,132.29,132.27,3.36566964]
[1763585207666,6.811,132.29,132.27,0.05566964]
[1763585210070,0.05313114,132.3,132.27,3.36566964]
[1763585210664,0.05313114,132.3,132.27,0.05566964]
[1763585212168,6.8109,132.29,132.27,0.05566964]
[1763585212378,0.05313114,132.3,132.27,0.05566964]
[1763585212963,0.05313114,132.3,132.27,3.36566964]
[1763585213472,6.8109,132.29,132.27,3.36566964]
[1763585213668,0.05313114,132.3,132.27,3.36566964]
[1763585215056,6.86353114,132.3,132.27,3.36566964]
[1763585215570,6.8109,132.29,132.27,3.36566964]
[1763585215766,0.05313114,132.3,132.27,0.05566964]
[1763585216274,6.8114,132.28,132.27,0.05566964]
[1763585216777,0.05313114,132.3,132.27,0.05566964]
[1763585217561,0.05313114,132.3,132.27,3.36566964]
[1763585218868,6.86353114,132.3,132.27,3.36566964]
[1763585219068,0.05313114,132.3,132.27,3.36566964]
[1763585219268,0.05313114,132.3,132.27,10.17756964]
[1763585219473,0.05313114,132.3,132.28,3.31]
[1763585221261,0.05313114,132.3,132.27,0.05566964]
[1763585221459,6.8114,132.28,132.27,0.05566964]
[1763585221865,15.96,132.28,132.22,3.31]
[1763585222065,7.03791195,132.27,132.22,3.31]
[1763585222873,0.05403072,132.26,132.23,0.05751286]
[1763585223367,0.05403072,132.26,132.23,3.36751286]
[1763585224874,0.05403072,132.26,132.24,3.31]
[1763585229573,0.05403072,132.26,132.23,3.42751286]
[1763585230577,7.03791195,132.29,132.27,3.37]
[1763585230773,6.8104,132.3,132.27,3.37]
[1763585231280,13.84771195,132.32,132.28,3.37]
[1763585231671,0.0566159,132.31,132.29,3.42260016]
[1763585232575,6.8666159,132.31,132.29,0.05260016]
[1763585232781,7.03791195,132.3,132.29,0.05260016]
[1763585233075,7.09452785,132.31,132.29,0.05260016]
[1763585233276,6.8104,132.3,132.29,0.05260016]
[1763585234179,13.84831195,132.3,132.29,0.05260016]
[1763585234380,7.09452785,132.31,132.29,3.42260016]
[1763585234770,0.0566159,132.31,132.3,3.37]
[1763585234979,0.0566159,132.31,132.29,0.05260016]
[1763585235169,0.0566159,132.31,132.29,3.42260016]
[1763585235379,7.09452785,132.31,132.29,0.05260016]
[1763585236977,6.8104,132.3,132.29,0.05260016]
[1763585237479,13.87294046,132.3,132.29,0.05260016]
[1763585239180,6.8104,132.3,132.29,0.05260016]
[1763585240683,13.87294046,132.3,132.29,0.05260016]
[1763585240881,115.40818347,132.31,132.24,3.37]
[1763585241077,115.40818347,132.31,132.15,144.1321882]
[1763585241078,113.02159369,132.28,132.2,3.37]
[1763585241287,7.06289369,132.26,132.2,3.37]
[1763585241677,6.813,132.25,132.21,3.37]
[1763585241981,0.05145579,132.24,132.22,3.42443199]
[1763585244383,0.05145579,132.24,132.23,3.37]
[1763585247886,0.05145579,132.24,132.22,3.28443199]
[1763585248989,7.06289369,132.27,132.24,3.23]
[1763585249891,7.11811261,132.27,132.24,3.23]
[1763585251987,0.05521892,132.27,132.24,3.23]
[1763585252178,0.05521892,132.27,132.24,10.0433]
[1763585252379,7.06289369,132.3,132.26,3.23]
[1763585252782,7.06289369,132.34,132.3,3.23]
[1763585253291,0.05310945,132.33,132.32,3.23]
[1763585253887,0.05310945,132.33,132.32,10.0393]
[1763585255890,7.06289369,132.37,132.34,6.8081]
[1763585256099,7.06289369,132.4,132.35,3.23]
[1763585256293,7.06289369,132.41,132.35,3.23]
[1763585256488,13.86769369,132.41,132.37,3.23]
[1763585256694,7.06289369,132.41,132.37,3.23]
[1763585257198,0.05494819,132.4,132.38,3.2800081]
[1763585257404,0.05494819,132.4,132.38,0.0500081]
[1763585257696,7.06289369,132.39,132.38,0.0500081]
[1763585257998,15.44324188,132.4,132.38,0.0500081]
[1763585258194,6.86034819,132.4,132.38,0.0500081]
[1763585258794,2.93533277,132.4,132.38,0.0500081]
[1763585259502,9.74103277,132.4,132.38,0.0500081]
[1763585259795,16.77051822,132.4,132.38,0.0500081]
[1763585260195,9.74103277,132.4,132.38,0.0500081]
[1763585260792,6.86064819,132.4,132.38,0.0500081]
[1763585262294,0.05494819,132.4,132.38,3.1600081]
[1763585262494,0.05494819,132.4,132.38,0.0500081]
[1763585264101,6.86044819,132.4,132.38,0.0500081]
[1763585265700,0.05494819,132.4,132.38,0.0500081]
[1763585265897,0.05494819,132.4,132.38,3.1600081]
[1763585266990,0.05494819,132.4,132.39,3.11]
[1763585267190,15.94,132.44,132.39,3.11]
[1763585267595,15.94,132.44,132.38,0.0500081]
[1763585267596,22.96948545,132.48,132.41,3.11]
[1763585267791,15.94,132.48,132.41,3.11]
[1763585268100,15.94,132.48,132.43,3.11]
[1763585268301,0.05693657,132.47,132.44,3.15967811]
[1763585268492,0.05693657,132.47,132.44,0.04967811]
[1763585268697,6.8023,132.46,132.44,0.04967811]
[1763585269303,0.05693657,132.47,132.44,0.04967811]
[1763585269497,0.05693657,132.47,132.44,3.15967811]
[1763585270310,0.05693657,132.47,132.44,0.04967811]
[1763585271207,0.05693657,132.47,132.44,3.15967811]
[1763585273814,0.05693657,132.47,132.44,0.04967811]
[1763585274715,6.8024,132.46,132.44,0.04967811]
[1763585278114,0.05693657,132.47,132.44,0.04967811]
[1763585279120,6.8023,132.46,132.44,0.04967811]
[1763585281215,105.8362,132.43,132.36,3.11]
[1763585281405,22.79933013,132.42,132.36,3.11]
[1763585282217,0.05159987,132.4,132.38,0.05517457]
[1763585282516,105.91199987,132.4,132.32,3.11]
[1763585282721,105.8548,132.41,132.32,3.11]
[1763585282904,22.79933013,132.42,132.34,3.11]
[1763585283407,0.04853158,132.39,132.37,0.05203938]
[1763585283612,0.04853158,132.39,132.37,3.16203938]
[1763585285119,0.04853158,132.39,132.37,0.05203938]
[1763585285618,7.02948545,132.45,132.38,3.11]
[1763585285619,13.66233013,132.45,132.38,3.11]
[1763585285807,6.85933013,132.45,132.38,3.11]
[1763585286206,7.02948545,132.49,132.4,3.11]
[1763585286416,15.94,132.49,132.4,3.11]
[1763585286811,0.0519831,132.46,132.43,0.05292893]
[1763585287425,0.0519831,132.46,132.43,3.16292893]
[1763585289114,22.741,132.49,132.44,3.18]
[1763585289115,15.94,132.49,132.44,3.18]
[1763585289319,1.31414977,132.52,132.44,3.18]
[1763585290112,0.04775528,132.49,132.47,0.04982947]
[1763585290523,6.84845528,132.49,132.47,0.04982947]
[1763585290718,22.78845528,132.49,132.47,0.04982947]
[1763585291215,6.802,132.47,132.42,3.18]
[1763585291725,15.94,132.49,132.42,3.18]
[1763585291921,6.8012,132.48,132.42,3.18]
[1763585292424,6.8012,132.48,132.38,105.8727]
[1763585292425,0.0566151,132.46,132.44,3.22992148]
[1763585293020,15.92,132.53,132.44,3.22992148]
[1763585293315,6.7997,132.51,132.44,3.18]
[1763585293515,105.7724,132.51,132.44,3.18]
[1763585293724,6.85933013,132.49,132.41,3.18]
[1763585294023,0.05076069,132.46,132.44,3.18]
[1763585294927,0.05076069,132.46,132.44,9.983]
[1763585295122,0.05076069,132.46,132.45,3.18]
[1763585296223,6.7998,132.51,132.45,3.18]
[1763585297424,0.05704309,132.49,132.47,3.23253083]
[1763585300115,0.05704309,132.49,132.47,0.05253083]
[1763585301317,0.05704309,132.49,132.47,3.23253083]
[1763585303224,0.05704309,132.49,132.48,3.18]
[1763585303530,15.92,132.53,132.48,3.18]
[1763585303718,7.01851722,132.57,132.51,3.18]
[1763585304322,7.01851722,132.57,132.52,3.18]
[1763585304723,0.05124683,132.56,132.53,3.22997267]
[1763585305933,6.7977,132.55,132.53,0.04997267]
[1763585306226,13.81621722,132.55,132.53,0.04997267]
[1763585306429,6.7991,132.52,132.47,3.06]
[1763585306629,105.7485,132.54,132.47,3.06]
[1763585306827,112.76701722,132.54,132.47,3.06]
[1763585307026,6.7998,132.51,132.47,3.06]
[1763585307426,6.7998,132.51,132.48,0.05119397]
[1763585307427,0.05449736,132.5,132.48,0.05119397]
[1763585307631,0.05449736,132.5,132.48,3.11119397]
[1763585308138,0.05449736,132.5,132.48,0.05119397]
[1763585308139,6.85479736,132.5,132.48,0.05119397]
[1763585308320,6.85479736,132.5,132.42,3.06]
[1763585308321,22.83382749,132.5,132.42,3.06]
[1763585308521,135.58094735,132.5,132.42,3.06]
[1763585308732,6.8014,132.48,132.42,3.06]
[1763585308926,22.93851722,132.5,132.42,3.06]
[1763585309132,15.92,132.5,132.45,3.06]
[1763585309435,9.41626757,132.53,132.47,3.06]
[1763585309436,0.05552353,132.49,132.47,3.06]
[1763585309638,0.05552353,132.49,132.47,3.10885951]
[1763585312137,22.93851722,132.54,132.47,3.10885951]
[1763585312325,15.92,132.54,132.47,3.10885951]
[1763585312830,6.7987,132.53,132.48,3.06]
[1763585313237,0.05664991,132.52,132.5,3.06]
[1763585316132,6.7979,132.55,132.5,3.06]
[1763585317236,0.04876348,132.54,132.5,3.06]
[1763585317729,6.84696348,132.54,132.5,3.06]
[1763585317934,0.04876348,132.54,132.49,3.37370232]
[1763585318334,0.04876348,132.54,132.5,3.32]
[1763585319833,6.84686348,132.54,132.5,3.32]
[1763585320340,0.04876348,132.54,132.5,3.32]
[1763585320931,0.04876348,132.54,132.5,10.12]
[1763585321239,0.04876348,132.54,132.51,3.32]
[1763585322139,0.04876348,132.54,132.51,10.1195]
[1763585322335,0.04876348,132.54,132.51,3.32]
[1763585322542,9.41626757,132.61,132.52,3.32]
[1763585322543,7.01851722,132.61,132.52,3.32]
[1763585322837,8.33177432,132.61,132.55,3.32]
[1763585323038,7.01851722,132.62,132.55,3.32]
[1763585323226,7.01851722,132.63,132.55,3.32]
[1763585323430,6.794,132.62,132.58,3.32]
[1763585323637,7.01851722,132.63,132.58,3.32]
[1763585323838,0.05268397,132.62,132.59,3.37534721]
[1763585324041,0.05268397,132.62,132.59,0.05534721]
[1763585324836,6.7945,132.61,132.59,0.05534721]
[1763585325440,22.7145,132.61,132.59,0.05534721]
[1763585325838,22.7145,132.61,132.59,3.37534721]
[1763585326042,22.7145,132.61,132.59,0.05534721]
[1763585327547,15.92,132.61,132.59,0.05534721]
[1763585328443,22.7146,132.61,132.59,0.05534721]
[1763585335253,6.795,132.6,132.59,0.05534721]
[1763585335950,6.7965,132.57,132.56,3.32]
[1763585336156,6.7965,132.57,132.51,3.32]
[1763585336852,6.796,132.59,132.53,6.7984]
[1763585337048,0.05667719,132.57,132.55,3.36853472]
[1763585337454,6.85317719,132.57,132.55,3.36853472]
[1763585337945,0.05667719,132.57,132.55,3.36853472]
[1763585339648,15.92,132.61,132.56,3.32]
[1763585339946,7.01851722,132.63,132.58,3.32]
[1763585340652,0.05097771,132.62,132.59,3.37642226]
[1763585340841,0.05639274,132.62,132.59,3.36966153]
[1763585341445,0.05639274,132.62,132.59,0.04966153]
[1763585341845,13.81311722,132.61,132.59,0.04966153]
[1763585342053,29.71311722,132.61,132.59,0.04966153]
[1763585342448,6.7967,132.57,132.53,3.32]
[1763585343353,15.9,132.57,132.48,3.32]
[1763585343550,0.04924439,132.54,132.51,0.05764545]
[1763585343846,0.04924439,132.54,132.51,3.37764545]
[1763585344257,6.84744439,132.54,132.51,0.05764545]
[1763585344960,0.04924439,132.54,132.51,3.37764545]
[1763585346857,6.84744439,132.54,132.51,0.05764545]
[1763585347654,6.84744439,132.54,132.45,3.32]
[1763585347655,105.7652,132.52,132.45,3.32]
[1763585347863,10.73433595,132.49,132.41,3.12]
[1763585348059,115.22036757,132.47,132.35,3.12]
[1763585348355,115.22036757,132.47,132.34,105.9028]
[1763585348356,7.01503322,132.47,132.39,105.8675]
[1763585348553,15.92,132.48,132.4,3.12]
[1763585348752,15.92,132.48,132.36,105.8888]
[1763585348753,0.05592743,132.45,132.43,0.05040199]
[1763585349051,0.05592743,132.45,132.43,3.17040199]
[1763585350255,0.05592743,132.45,132.43,0.05040199]
[1763585350746,6.85882743,132.45,132.43,0.05040199]
[1763585353461,15.92,132.44,132.38,3.12]
[1763585353661,7.0030968,132.48,132.38,3.12]
[1763585353851,15.92,132.47,132.38,3.12]
[1763585354051,15.92,132.47,132.39,3.12]
[1763585354351,0.05312411,132.44,132.42,0.0498311]
[1763585355453,6.85662411,132.44,132.42,0.0498311]
[1763585355853,0.05312411,132.44,132.42,0.0498311]
[1763585357364,15.92,132.5,132.42,3.1698311]
[1763585357566,15.92,132.5,132.42,3.12]
[1763585358066,15.92,132.5,132.44,3.12]
[1763585358455,0.05352872,132.48,132.46,3.17736656]
[1763585363861,116.48063595,132.55,132.46,3.17736656]
[1763585363862,7.0030968,132.56,132.47,3.12]
[1763585364063,15.92,132.57,132.47,3.12]
[1763585364768,22.7169,132.57,132.5,3.12]
[1763585365067,22.7169,132.57,132.52,0.05550797]
[1763585365068,0.05800429,132.55,132.52,0.05550797]
[1763585365274,0.05800429,132.55,132.52,3.17550797]
[1763585366169,0.05800429,132.55,132.52,0.05550797]
[1763585367465,0.05800429,132.55,132.53,3.36]
[1763585369072,0.05800429,132.55,132.52,0.05550797]
[1763585369271,0.05800429,132.55,132.52,3.41550797]
[1763585369661,6.85560429,132.55,132.52,0.05550797]
[1763585370167,0.05800429,132.55,132.52,0.05550797]
[1763585370561,6.85560429,132.55,132.52,0.05550797]
[1763585371066,0.05800429,132.55,132.52,0.05550797]
[1763585372274,0.05800429,132.55,132.52,3.41550797]
[1763585373268,6.7983,132.54,132.52,0.05550797]
[1763585373474,6.7983,132.54,132.43,6.84168944]
[1763585373475,15.92,132.53,132.44,3.36]
[1763585373659,121.6791,132.53,132.44,3.36]